bitfinex/quotes_ETHUSD_20241103
["timestamp","ask_amount","ask_price","bid_price","bid_amount"]
[1730633253189,0.7944,2460.5,2459.6,0.15870912]
[1730633253386,0.7944,2460.5,2459.7,0.15869584]
[1730633253588,0.7944,2460.5,2459.6,0.15870912]
[1730633253785,0.7944,2460.5,2459.7,0.15869679]
[1730633253986,0.7944,2460.5,2459.6,0.15870912]
[1730633257093,0.7944,2460.5,2459.3,1.35958728]
[1730633257337,0.7944,2460.5,2459.4,0.1586745]
[1730633257630,0.7944,2460.5,2459.3,1.35958728]
[1730633257631,0.7944,2460.5,2459.5,0.1586745]
[1730633257838,0.7944,2460.5,2459.6,0.1586745]
[1730633257992,0.7944,2460.5,2459.3,1.35958728]
[1730633258195,0.7944,2460.5,2459.4,0.1586761]
[1730633258496,0.7944,2460.5,2459.5,0.1586761]
[1730633258723,0.7944,2460.5,2459.3,1.35958728]
[1730633258936,0.7944,2460.5,2459.4,0.15867575]
[1730633259138,0.7944,2460.5,2459.5,0.15867575]
[1730633259435,0.7944,2460.5,2459.3,1.35958728]
[1730633259622,0.7944,2460.5,2459.4,0.15866971]
[1730633259823,0.7944,2460.5,2459.5,0.15866971]
[1730633260023,0.7944,2460.5,2459.3,1.44087574]
[1730633260227,0.7944,2460.5,2459.4,0.15867407]
[1730633260414,0.7944,2460.5,2459.5,0.15867407]
[1730633260599,0.7944,2460.5,2459.3,1.35956782]
[1730633260798,0.7944,2460.5,2459.4,0.15866791]
[1730633261112,0.7944,2460.5,2459.5,0.15866791]
[1730633261325,0.7944,2460.5,2459.3,1.56550312]
[1730633261526,0.7944,2460.5,2459.4,0.86378173]
[1730633261699,0.7944,2460.5,2459.5,0.15866424]
[1730633262036,0.7944,2460.5,2459.3,1.56550312]
[1730633262336,0.7944,2460.5,2459.4,0.8638174]
[1730633262540,0.7944,2460.5,2459.5,0.15869431]
[1730633262699,0.7944,2460.5,2459.3,1.56550312]
[1730633262900,0.7944,2460.5,2459.4,0.86382343]
[1730633263193,0.7944,2460.5,2459.5,0.15869418]
[1730633263392,0.7944,2460.5,2459.3,1.64681652]
[1730633263620,0.7944,2460.5,2459.4,0.86384765]
[1730633263846,0.7944,2460.5,2459.4,0.1587]
[1730633263997,0.7944,2460.5,2459.5,0.1586958]
[1730633264311,0.7944,2460.5,2459.3,1.64689783]
[1730633264512,0.7944,2460.5,2459.4,0.86391961]
[1730633264831,0.7944,2460.5,2459.5,0.1587064]
[1730633265010,0.7944,2460.5,2459.6,0.15870322]
[1730633265214,0.7944,2460.5,2459.3,2.49864451]
[1730633265533,0.7944,2460.5,2459.4,0.86397739]
[1730633265832,0.7944,2460.5,2459.5,0.1587232]
[1730633266029,0.7944,2460.5,2459.3,1.56558443]
[1730633266235,0.7944,2460.5,2459.4,0.86397137]
[1730633266433,0.7944,2460.5,2459.5,0.15872402]
[1730633266640,0.7944,2460.5,2459.3,1.56558443]
[1730633266842,0.7944,2460.5,2459.4,0.86394576]
[1730633267139,0.7944,2460.5,2459.5,0.15870912]
[1730633267302,0.7944,2460.5,2459.3,1.31166501]
[1730633267503,0.7944,2460.5,2459.4,0.86395429]
[1730633267705,0.7944,2460.5,2459.5,0.1587328]
[1730633268044,0.7944,2460.5,2459.3,1.31172556]
[1730633268347,0.7944,2460.5,2459.4,0.15875227]
[1730633268651,0.7944,2460.5,2459.5,0.15875227]
[1730633268848,0.7944,2460.5,2459.3,1.31175537]
[1730633269020,0.7944,2460.5,2459.4,0.15874787]
[1730633269216,0.7944,2460.5,2459.5,0.15874787]
[1730633269408,0.7944,2460.5,2459.3,1.31175537]
[1730633269750,0.7944,2460.5,2459.4,0.15873628]
[1730633270041,0.7944,2460.5,2459.5,0.15873628]
[1730633270347,0.7944,2460.5,2459.3,1.31175537]
[1730633270502,0.7944,2460.5,2459.4,0.86402289]
[1730633270840,0.7944,2460.5,2459.5,0.15873087]
[1730633271043,0.7944,2460.5,2459.6,0.15873087]
[1730633271203,0.7944,2460.5,2459.4,0.25403028]
[1730633271408,0.7944,2460.5,2459.5,0.15873367]
[1730633271605,0.7944,2460.5,2459.3,1.31175537]
[1730633271834,0.7944,2460.5,2459.4,0.8640369]
[1730633272016,0.7944,2460.5,2459.5,0.15873465]
[1730633272216,0.7944,2460.5,2459.3,1.31175537]
[1730633272423,0.7944,2460.5,2459.4,0.86403776]
[1730633272636,0.7944,2460.5,2459.5,0.15873492]
[1730633272845,0.833,2460.3,2459.3,1.31175537]
[1730633273135,0.833,2460.3,2459.4,0.86406382]
[1730633273336,0.833,2460.3,2459.5,0.15873487]
[1730633273503,0.833,2460.3,2459.3,1.31203078]
[1730633273711,0.833,2460.3,2459.4,0.86409278]
[1730633273909,0.833,2460.3,2459.5,0.15873924]
[1730633274112,0.833,2460.3,2459.3,1.31203078]
[1730633274313,0.833,2460.3,2459.4,0.86408919]
[1730633274549,0.833,2460.3,2459.5,0.15873274]
[1730633274844,0.833,2460.3,2459.3,1.31203078]
[1730633275036,0.833,2460.3,2459.4,0.86409082]
[1730633275234,0.833,2460.3,2459.5,0.15872834]
[1730633275554,0.833,2460.3,2459.3,1.31203078]
[1730633275729,0.833,2460.3,2459.4,0.1587282]
[1730633275930,0.833,2460.3,2459.5,0.1587282]
[1730633276131,0.833,2460.3,2459.3,1.31203078]
[1730633276340,0.833,2460.3,2459.4,0.86409258]
[1730633276543,0.833,2460.3,2459.5,0.15872908]
[1730633276744,0.833,2460.3,2459.3,1.31203078]
[1730633276918,0.833,2460.3,2459.4,0.86409054]
[1730633277120,0.833,2460.3,2459.5,0.1587299]
[1730633277436,0.833,2460.3,2459.3,1.31203078]
[1730633277743,0.833,2460.3,2459.4,0.86409554]
[1730633277942,0.833,2460.3,2459.5,0.15873114]
[1730633278134,0.833,2460.3,2459.3,1.31207718]
[1730633278434,0.833,2460.3,2459.4,0.86409872]
[1730633278632,0.833,2460.3,2459.5,0.15873364]
[1730633278833,0.833,2460.3,2459.3,1.31207718]
[1730633279028,0.833,2460.3,2459.4,0.15873518]
[1730633279263,0.833,2460.3,2459.3,1.0580469]
[1730633279625,0.833,2460.3,2459.5,0.15873709]
[1730633283593,0.833,2460.3,2459.6,0.15875579]
[1730633283795,0.833,2460.3,2459.5,0.15873709]
[1730633284765,0.833,2460.3,2459.6,0.15875681]
[1730633284995,0.833,2460.3,2459.5,0.15873709]
[1730633285192,0.833,2460.3,2459.6,0.15876781]
[1730633285394,0.833,2460.3,2459.5,0.15873709]
[1730633285808,0.833,2460.3,2459.6,0.15877823]
[1730633286011,0.833,2460.3,2459.5,0.15873709]
[1730633286211,0.833,2460.3,2459.6,0.15877151]
[1730633286382,0.833,2460.3,2459.5,0.15873709]
[1730633286583,0.833,2460.3,2459.6,0.15878212]
[1730633286887,0.833,2460.3,2459.5,0.15873709]
[1730633287085,0.833,2460.3,2459.6,0.15878528]
[1730633287608,0.833,2460.3,2459.4,1.05839176]
[1730633287916,0.833,2460.3,2459.5,0.15879934]
[1730633288116,0.833,2460.3,2459.6,0.15879934]
[1730633288427,0.833,2460.3,2459.4,1.31263794]
[1730633288626,0.833,2460.3,2459.5,0.15881606]
[1730633288918,0.833,2460.3,2459.6,0.15881606]
[1730633289122,0.833,2460.3,2459.3,1.66573626]
[1730633289325,0.833,2460.3,2459.4,2.17740985]
[1730633289487,0.833,2460.3,2459.5,1.11875332]
[1730633289681,0.833,2460.3,2459.6,0.15882893]
[1730633289934,0.833,2460.3,2459.3,1.66573626]
[1730633290104,0.833,2460.3,2459.5,0.25414988]
[1730633290305,0.833,2460.3,2459.6,0.15882974]
[1730633290510,0.833,2460.3,2459.4,1.31296821]
[1730633290819,0.833,2460.3,2459.5,2.1776924]
[1730633291023,0.833,2460.3,2459.6,2.1776924]
[1730633291324,0.833,2460.3,2459.7,0.86464477]
[1730633291480,0.833,2460.3,2459.8,0.15883379]
[1730633291681,0.833,2460.3,2459.9,0.15882804]
[1730633291887,0.833,2460.3,2459.7,0.811]
[1730633292085,0.833,2460.3,2459.8,0.1588147]
[1730633292292,0.833,2460.3,2459.9,0.1588147]
[1730633292517,0.833,2460.3,2459.7,1.86966922]
[1730633292735,0.833,2460.3,2459.8,0.15881631]
[1730633292880,0.833,2460.3,2459.9,0.15881631]
[1730633293081,0.833,2460.3,2459.7,1.86966922]
[1730633293413,0.833,2460.3,2459.8,0.15882364]
[1730633293924,0.833,2460.3,2459.9,0.15882364]
[1730633294099,0.833,2460.3,2459.7,1.86966922]
[1730633294295,0.833,2460.3,2459.8,0.15881177]
[1730633294504,0.833,2460.3,2459.9,0.15881177]
[1730633294700,0.833,2460.3,2459.7,1.86966922]
[1730633295013,0.833,2460.3,2459.8,0.86455258]
[1730633295328,0.833,2460.3,2459.9,0.15880649]
[1730633295490,0.833,2460.3,2459.7,0.811]
[1730633295683,0.833,2460.3,2459.8,0.15880196]
[1730633295886,0.833,2460.3,2459.9,0.15880196]
[1730633296087,0.833,2460.3,2459.7,0.811]
[1730633296327,0.833,2460.3,2459.8,0.86447787]
[1730633296632,0.833,2460.3,2459.9,0.15878761]
[1730633296932,0.833,2460.3,2459.7,1.86946125]
[1730633297287,0.833,2460.3,2459.8,0.15878824]
[1730633297483,0.833,2460.3,2459.9,0.15878824]
[1730633297721,0.833,2460.3,2459.7,1.86946125]
[1730633297923,0.833,2460.3,2459.8,0.1587772]
[1730633298126,0.833,2460.3,2459.9,0.1587772]
[1730633298297,0.833,2460.3,2459.7,1.86946125]
[1730633298623,0.833,2460.3,2459.8,0.15877329]
[1730633298799,0.833,2460.3,2459.9,0.15877329]
[1730633299123,0.833,2460.3,2459.7,1.86946125]
[1730633299419,0.833,2460.3,2459.8,0.15876401]
[1730633299729,0.833,2460.3,2459.9,0.15876401]
[1730633299904,0.833,2460.3,2459.7,2.12336398]
[1730633300102,0.833,2460.3,2459.8,0.15876486]
[1730633300299,0.833,2460.3,2459.9,0.15876486]
[1730633300510,0.833,2460.3,2459.7,1.86931623]
[1730633300715,0.833,2460.3,2459.7,2.12335104]
[1730633301020,0.833,2460.3,2459.8,0.15875571]
[1730633301197,0.833,2460.3,2459.7,2.12335203]
[1730633301198,0.833,2460.3,2459.9,0.15875571]
[1730633301397,0.833,2460.3,2459.7,2.12335203]
[1730633301606,0.833,2460.3,2459.8,0.15874556]
[1730633301808,0.833,2460.3,2459.7,2.12335203]
[1730633301809,0.833,2460.3,2459.9,0.15874556]
[1730633302021,0.833,2460.3,2459.7,2.12335203]
[1730633302228,0.833,2460.3,2459.8,0.15875261]
[1730633302441,0.833,2460.3,2459.9,0.15875261]
[1730633302594,0.833,2460.3,2459.7,2.12335203]
[1730633302800,0.833,2460.3,2459.8,0.15874446]
[1730633303024,0.833,2460.3,2459.6,1.31214773]
[1730633303224,0.833,2460.3,2459.7,0.15875889]
[1730633303442,0.833,2460.3,2459.6,1.31214773]
[1730633303643,0.833,2460.3,2459.7,0.15875121]
[1730633303795,0.833,2460.3,2459.5,1.31216708]
[1730633304000,0.833,2460.3,2459.6,0.1587458]
[1730633304312,0.833,2460.3,2459.5,0.25401725]
[1730633304624,0.833,2460.3,2459.6,0.1587465]
[1730633304803,0.833,2460.3,2459.5,0.25401725]
[1730633305009,0.833,2460.3,2459.6,0.1587458]
[1730633305339,0.833,2460.3,2459.5,0.25401725]
[1730633305519,0.833,2460.3,2459.6,0.15874671]
[1730633305728,0.833,2460.3,2459.5,0.25401725]
[1730633305924,0.833,2460.3,2459.6,0.15874552]
[1730633306127,0.833,2460.3,2459.5,1.31221655]
[1730633306306,0.833,2460.3,2459.6,0.1587445]
[1730633306605,0.833,2460.3,2459.4,1.31220184]
[1730633306807,0.833,2460.3,2459.5,1.1182306]
[1730633307004,0.833,2460.3,2459.2,9.96145531]
[1730633307005,0.833,2460.3,2459.6,0.15874903]
[1730633307243,0.833,2460.3,2459.5,1.31221719]
[1730633307533,0.833,2460.3,2459.3,1.91171951]
[1730633307746,0.833,2460.3,2459.6,0.15874513]
[1730633307898,0.833,2460.3,2459.4,1.31220015]
[1730633308109,0.833,2460.3,2459.5,0.86422365]
[1730633308308,0.833,2460.3,2459.6,0.15874634]
[1730633308537,0.833,2460.3,2459.4,1.31220015]
[1730633308756,0.833,2460.3,2459.5,0.86422357]
[1730633308915,0.833,2460.3,2459.6,0.15874649]
[1730633309116,0.833,2460.3,2459.4,1.31220015]
[1730633309439,0.833,2460.3,2459.5,0.86422387]
[1730633309625,0.833,2460.3,2459.6,0.15874659]
[1730633309828,0.833,2460.3,2459.4,1.05818325]
[1730633310027,0.833,2460.3,2459.5,0.86422709]
[1730633310243,0.833,2460.3,2459.6,0.15875026]
[1730633310538,0.833,2460.3,2459.4,1.31221248]
[1730633310708,0.833,2460.3,2459.5,0.8642362]
[1730633310908,0.833,2460.3,2459.4,1.05818325]
[1730633311151,0.833,2460.3,2459.5,0.70547824]
[1730633311310,0.833,2460.3,2459.6,0.15875206]
[1730633311515,0.833,2460.3,2459.4,1.05818325]
[1730633311716,0.833,2460.3,2459.5,0.86422615]
[1730633312056,0.833,2460.3,2459.6,0.15874771]
[1730633312262,0.833,2460.3,2459.4,1.05818325]
[1730633312430,0.833,2460.3,2459.5,0.86422913]
[1730633312615,0.833,2460.3,2459.6,0.15874998]
[1730633312957,0.833,2460.3,2459.4,1.05818325]
[1730633313156,0.833,2460.3,2459.5,0.86422966]
[1730633313320,0.833,2460.3,2459.6,0.15874751]
[1730633313524,0.833,2460.3,2459.4,1.0582238]
[1730633313746,0.833,2460.3,2459.5,1.11826357]
[1730633313946,0.833,2460.3,2459.6,0.15874888]
[1730633314145,0.833,2460.3,2459.4,1.05823159]
[1730633314418,0.833,2460.3,2459.5,0.8642408]
[1730633314619,0.833,2460.3,2459.4,1.05823159]
[1730633314843,0.833,2460.3,2459.6,0.15875101]
[1730633315159,0.833,2460.3,2459.4,1.31226417]
[1730633315334,0.833,2460.3,2459.5,0.86427411]
[1730633315534,0.833,2460.3,2459.6,0.15876124]
[1730633315757,0.833,2460.3,2459.4,1.31227488]
[1730633316049,0.833,2460.3,2459.5,0.86428093]
[1730633316255,0.833,2460.3,2459.6,0.15876042]
[1730633316452,0.833,2460.3,2459.4,1.05823159]
[1730633316651,0.833,2460.3,2459.5,0.15875711]
[1730633316960,0.833,2460.3,2459.6,0.15875711]
[1730633317128,0.833,2460.3,2459.3,0.85353626]
[1730633317329,0.833,2460.3,2459.4,0.41279754]
[1730633317649,0.833,2460.3,2459.5,0.15875803]
[1730633317839,0.833,2460.3,2459.6,0.15875803]
[1730633318040,0.833,2460.3,2459.4,0.2540393]
[1730633318339,0.833,2460.3,2459.5,0.15876009]
[1730633318512,0.833,2460.3,2459.6,0.15876009]
[1730633318716,0.833,2460.3,2459.3,0.85353626]
[1730633318942,0.833,2460.3,2459.4,0.41281554]
[1730633319161,0.833,2460.3,2459.5,0.41281962]
[1730633319337,0.833,2460.3,2459.6,0.15876495]
[1730633319544,0.833,2460.3,2459.4,1.05828216]
[1730633319747,0.833,2460.3,2459.5,0.15877047]
[1730633320055,0.833,2460.3,2459.6,0.15877047]
[1730633320262,0.833,2460.3,2459.7,0.15876735]
[1730633320443,0.833,2460.3,2459.5,0.25405684]
[1730633320645,0.833,2460.3,2459.6,0.15877144]
[1730633320952,0.833,2460.3,2459.7,0.15877144]
[1730633321130,0.833,2460.3,2459.4,0.25405684]
[1730633321330,0.833,2460.3,2459.5,0.41283748]
[1730633321532,0.833,2460.3,2459.6,0.15878064]
[1730633321855,0.833,2460.3,2459.5,0.25405684]
[1730633322061,0.833,2460.3,2459.6,0.15876944]
[1730633322363,0.833,2460.3,2459.7,0.15876944]
[1730633322657,0.833,2460.3,2459.4,0.25405684]
[1730633322822,0.833,2460.3,2459.5,0.41282886]
[1730633323021,0.833,2460.3,2459.3,0.85353626]
[1730633323022,0.833,2460.3,2459.6,0.15877202]
[1730633323247,0.833,2460.3,2459.7,0.15877202]
[1730633323438,0.833,2460.3,2459.4,0.25406767]
[1730633323624,0.833,2460.3,2459.5,0.15877929]
[1730633323824,0.833,2460.3,2459.6,0.15877929]
[1730633324025,0.833,2460.3,2459.3,0.85353626]
[1730633324323,0.833,2460.3,2459.4,0.41285194]
[1730633324523,0.833,2460.3,2459.5,0.15877895]
[1730633324757,0.833,2460.3,2459.3,1.10765509]
[1730633324961,0.833,2460.3,2459.4,0.15880613]
[1730633325256,0.833,2460.3,2459.3,0.85353626]
[1730633325626,0.833,2460.3,2459.4,0.15883831]
[1730633325828,0.833,2460.3,2459.3,0.85353626]
[1730633329958,0.833,2460.3,2459.2,0.811]
[1730633330260,0.833,2460.3,2459.3,0.15877949]
[1730633330423,0.833,2460.3,2459.2,0.811]
[1730633330628,0.833,2460.3,2459.3,0.15877007]
[1730633330976,0.833,2460.3,2459.1,0.25408977]
[1730633331126,0.833,2460.3,2459.2,0.1587702]
[1730633331433,0.833,2460.3,2459.3,0.1587702]
[1730633331777,0.833,2460.3,2459.1,0.25408977]
[1730633331928,0.833,2460.3,2459.2,0.15876051]
[1730633332262,0.833,2460.3,2459.3,0.15876051]
[1730633332425,0.833,2460.3,2459.4,0.15876212]
[1730633332764,0.833,2460.3,2459.1,0.80404603]
[1730633332965,0.833,2460.3,2459.2,0.15876292]
[1730633333466,0.833,2460.3,2459.3,0.15876292]
[1730633333668,0.833,2460.3,2459.1,0.80404731]
[1730633333822,0.833,2460.3,2459.2,0.15875379]
[1730633334026,0.833,2460.3,2459.3,0.15875379]
[1730633334308,0.833,2460.3,2459.1,0.80404731]
[1730633334476,0.833,2460.3,2459.2,0.15874545]
[1730633334644,0.833,2460.3,2459.3,0.15874545]
[1730633334970,0.833,2460.3,2459.1,0.80404731]
[1730633335172,0.833,2460.3,2459.2,0.15874755]
[1730633335375,0.833,2460.3,2459.3,0.15874755]
[1730633335667,0.833,2460.3,2459.1,0.80404731]
[1730633335832,0.833,2460.3,2459.2,0.15874092]
[1730633336170,0.833,2460.3,2459.3,0.15874092]
[1730633336371,0.833,2460.3,2459.1,0.55]
[1730633336662,0.833,2460.3,2459.2,0.1587347]
[1730633336866,0.833,2460.3,2459.3,0.1587347]
[1730633337030,0.833,2460.3,2459.1,0.55]
[1730633337231,0.833,2460.3,2459.2,0.158735]
[1730633337430,0.833,2460.3,2459.3,0.158735]
[1730633337667,0.833,2460.3,2459.1,0.55]
[1730633337865,0.833,2460.3,2459.2,0.15872985]
[1730633338088,0.833,2460.3,2459.3,0.15872985]
[1730633338255,0.833,2460.3,2459.1,0.55]
[1730633338456,0.833,2460.3,2459.2,0.15872928]
[1730633338756,0.833,2460.3,2459.3,0.15872928]
[1730633338951,0.833,2460.3,2459.1,0.55]
[1730633339146,0.833,2460.3,2459.2,0.1587293]
[1730633339351,0.833,2460.3,2459.3,0.1587293]
[1730633339596,0.833,2460.3,2459.1,0.55]
[1730633339899,0.833,2460.3,2459.2,0.15872774]
[1730633340191,0.833,2460.3,2459.3,0.15872774]
[1730633340356,0.833,2460.3,2459.1,0.55]
[1730633340558,0.833,2460.3,2459.2,0.15872917]
[1730633340849,0.833,2460.3,2459.3,0.15872917]
[1730633341050,0.833,2460.3,2459.1,0.80399111]
[1730633341256,0.833,2460.3,2459.2,1.61905325]
[1730633341482,0.833,2460.3,2459.3,0.15873102]
[1730633341683,0.833,2460.3,2459.2,0.7554]
[1730633342291,0.833,2460.3,2459.3,0.15873697]
[1730633342659,0.833,2460.3,2459.2,0.7554]
[1730633342999,0.833,2460.3,2459.3,0.15873696]
[1730633343295,0.833,2460.3,2459.1,0.80400579]
[1730633343593,0.833,2460.3,2459.2,0.1587534]
[1730633343773,0.833,2460.3,2459.3,0.1587534]
[1730633343952,0.833,2460.3,2459.1,0.55]
[1730633344155,0.833,2460.3,2459.2,0.15875227]
[1730633344505,0.833,2460.3,2459.3,0.15875227]
[1730633344653,0.8309,2460.1,2459.1,0.80400579]
[1730633344994,0.8309,2460.1,2459.2,0.15875952]
[1730633345182,0.8309,2460.1,2459.3,0.15875952]
[1730633345381,0.8309,2460.1,2459.1,0.80400579]
[1730633345587,0.8309,2460.1,2459.2,0.15876978]
[1730633345794,0.8309,2460.1,2459.3,0.15876978]
[1730633345969,0.8309,2460.1,2459.1,1.86159345]
[1730633346167,0.8309,2460.1,2459.2,0.86393993]
[1730633346366,0.8309,2460.1,2459.3,0.15877023]
[1730633346684,0.8309,2460.1,2459.4,0.15877023]
[1730633346886,0.8309,2460.1,2459.2,1.31159345]
[1730633347084,0.8309,2460.1,2459.3,0.15878441]
[1730633347305,0.8309,2460.1,2459.4,0.15878441]
[1730633347482,0.8309,2460.1,2459.2,1.31159345]
[1730633347684,0.8309,2460.1,2459.3,0.15879845]
[1730633347867,0.8309,2460.1,2459.4,0.15879845]
[1730633348067,0.8309,2460.1,2459.2,1.31159345]
[1730633348302,0.8309,2460.1,2459.3,0.15879955]
[1730633348507,0.8309,2460.1,2459.4,0.15879955]
[1730633348705,0.8309,2460.1,2459.2,1.31202255]
[1730633349008,0.8309,2460.1,2459.3,0.86427225]
[1730633349216,0.8309,2460.1,2459.2,1.05801676]
[1730633349410,0.8309,2460.1,2459.3,0.70546039]
[1730633349712,0.8309,2460.1,2459.4,0.15882178]
[1730633349877,0.8309,2460.1,2459.2,0.2541415]
[1730633350202,0.8309,2460.1,2459.3,0.86435885]
[1730633350508,0.8309,2460.1,2459.4,0.15882421]
[1730633350708,0.8309,2460.1,2459.2,0.2541415]
[1730633350862,0.8309,2460.1,2459.3,0.8643959]
[1730633351069,0.8309,2460.1,2459.2,1.31251373]
[1730633351270,0.8309,2460.1,2459.3,0.15883911]
[1730633351604,0.8309,2460.1,2459.4,0.15883911]
[1730633351903,0.8309,2460.1,2459.2,0.2541415]
[1730633352108,0.8309,2460.1,2459.3,0.86444662]
[1730633352276,0.8309,2460.1,2459.4,0.15883624]
[1730633352482,0.8309,2460.1,2459.2,0.2541415]
[1730633352690,0.8309,2460.1,2459.3,0.86448722]
[1730633352908,0.8309,2460.1,2459.2,0.25417293]
[1730633353208,0.8309,2460.1,2459.3,0.86448265]
[1730633353382,0.8309,2460.1,2459.3,0.15884421]
[1730633353576,0.8309,2460.1,2459.4,0.15884421]
[1730633353782,0.8309,2460.1,2459.2,0.25417739]
[1730633354105,0.8309,2460.1,2459.3,0.70567917]
[1730633354321,0.8309,2460.1,2459.4,0.15884343]
[1730633354515,0.8309,2460.1,2459.5,0.08130729]
[1730633354990,0.8309,2460.1,2459.5,0.83440729]
[1730633355190,0.8309,2460.1,2459.6,0.15885045]
[1730633355396,0.8309,2460.1,2459.5,0.7531]
[1730633355590,0.8309,2460.1,2459.6,0.15883813]
[1730633355802,0.8309,2460.1,2459.5,0.7531]
[1730633356001,0.8309,2460.1,2459.6,0.15883929]
[1730633356206,0.8309,2460.1,2459.5,1.81156172]
[1730633356504,0.8309,2460.1,2459.5,0.7531]
[1730633356707,0.8309,2460.1,2459.5,1.81156675]
[1730633356874,0.8309,2460.1,2459.6,0.15884629]
[1730633357078,0.8309,2460.1,2459.4,1.05847848]
[1730633357286,0.8309,2460.1,2459.5,0.70566086]
[1730633357488,0.8309,2460.1,2459.4,1.05855203]
[1730633357782,0.8309,2460.1,2459.2,0.85353626]
[1730633358115,0.8309,2460.1,2459.3,1.76440373]
[1730633358416,0.8309,2460.1,2459.4,0.8646231]
[1730633358582,0.8309,2460.1,2459.5,0.15886161]
[1730633358782,0.8309,2460.1,2459.3,0.25420523]
[1730633358998,0.8309,2460.1,2459.4,0.86468837]
[1730633359211,0.8309,2460.1,2459.5,0.15887305]
[1730633359505,0.8309,2460.1,2459.3,0.25420523]
[1730633359718,0.8309,2460.1,2459.4,0.86475607]
[1730633359872,0.8309,2460.1,2459.5,0.15887933]
[1730633360203,0.8309,2460.1,2459.3,0.25420523]
[1730633360391,0.8309,2460.1,2459.4,0.8647613]
[1730633360605,0.8309,2460.1,2459.5,0.1588846]
[1730633360924,0.8309,2460.1,2459.3,0.25420523]
[1730633361134,0.8309,2460.1,2459.4,0.70594475]
[1730633361423,0.8309,2460.1,2459.5,0.15888478]
[1730633361586,0.8309,2460.1,2459.2,0.85353626]
[1730633361778,0.8309,2460.1,2459.3,2.17849653]
[1730633361977,0.8309,2460.1,2459.4,0.15901038]
[1730633362222,0.8309,2460.1,2459.5,0.15901038]
[1730633362388,0.8309,2460.1,2459.3,0.25443193]
[1730633362591,0.8309,2460.1,2459.4,1.92423858]
[1730633362790,0.8309,2460.1,2459.3,0.25443193]
[1730633362791,0.8309,2460.1,2459.5,0.15901425]
[1730633363097,0.8309,2460.1,2459.4,1.05913479]
[1730633363311,0.8309,2460.1,2459.5,0.15902004]
[1730633363606,0.8309,2460.1,2459.3,1.31359842]
[1730633363806,0.8309,2460.1,2459.4,0.86512857]
[1730633363980,0.8309,2460.1,2459.5,0.15902352]
[1730633364182,0.8309,2460.1,2459.3,2.16713465]
[1730633364421,0.8309,2460.1,2459.4,0.86512906]
[1730633364622,0.8309,2460.1,2459.2,0.85353626]
[1730633364828,0.8309,2460.1,2459.5,0.1590306]
[1730633364998,0.8309,2460.1,2459.2,0.85353626]
[1730633365194,0.8309,2460.1,2459.3,2.01972745]
[1730633365401,0.8309,2460.1,2459.4,1.7652685]
[1730633365617,0.8309,2460.1,2459.3,0.85353626]
[1730633365815,0.8309,2460.1,2459.4,1.92423184]
[1730633365987,0.8309,2460.1,2459.4,0.15902019]
[1730633366322,0.8309,2460.1,2459.5,0.15902019]
[1730633366525,0.8309,2460.1,2459.4,1.05912893]
[1730633366731,0.8309,2460.1,2459.5,0.15903022]
[1730633366900,0.8309,2460.1,2459.4,1.0591403]
[1730633367101,0.8309,2460.1,2459.1,3.99529389]
[1730633367102,0.8309,2460.1,2459.5,0.15903413]
[1730633367314,0.8309,2460.1,2459.3,1.31367804]
[1730633367629,0.8309,2460.1,2459.4,0.86516253]
[1730633367801,0.8309,2460.1,2459.5,0.15905654]
[1730633367999,0.8309,2460.1,2459.2,0.85353626]
[1730633368220,0.8309,2460.1,2459.3,3.0324014]
[1730633368529,0.8309,2460.1,2459.4,2.17886514]
[1730633368689,0.8309,2460.1,2459.5,0.15905814]
[1730633368885,0.8309,2460.1,2459.6,0.15906541]
[1730633369127,0.8309,2460.1,2459.3,0.85353626]
[1730633369290,0.8309,2460.1,2459.4,2.17889509]
[1730633369490,0.8309,2460.1,2459.5,0.15908752]
[1730633369692,0.8309,2460.1,2459.6,0.15908752]
[1730633369920,0.8309,2460.1,2459.3,0.85353626]
[1730633370224,0.8309,2460.1,2459.4,2.17888974]
[1730633370430,0.8309,2460.1,2459.3,0.85353626]
[1730633370431,0.8309,2460.1,2459.5,0.15908555]
[1730633370593,0.8309,2460.1,2459.6,0.15908555]
[1730633370792,0.8309,2460.1,2459.3,0.85353626]
[1730633371124,0.8309,2460.1,2459.4,2.17892401]
[1730633371427,0.8309,2460.1,2459.5,0.1590969]
[1730633371599,0.8309,2460.1,2459.6,0.1590969]
[1730633371802,0.8309,2460.1,2459.3,0.85353626]
[1730633371986,0.8309,2460.1,2459.4,2.17892148]
[1730633372191,0.8309,2460.1,2459.5,0.15909598]
[1730633372405,0.8309,2460.1,2459.6,0.15909598]
[1730633372609,0.8309,2460.1,2459.3,0.85353626]
[1730633372814,0.8309,2460.1,2459.4,2.17893015]
[1730633373017,0.8309,2460.1,2459.5,0.15909621]
[1730633373215,0.8309,2460.1,2459.6,0.15909621]
[1730633373407,0.8309,2460.1,2459.3,0.85353626]
[1730633373608,0.8309,2460.1,2459.4,2.17894267]
[1730633373806,0.8309,2460.1,2459.5,0.15909816]
[1730633374022,0.8309,2460.1,2459.6,0.15909816]
[1730633374192,0.8309,2460.1,2459.3,0.85353626]
[1730633374390,0.8309,2460.1,2459.4,2.17894622]
[1730633374602,0.8309,2460.1,2459.5,0.15909704]
[1730633374802,0.8309,2460.1,2459.6,0.15909704]
[1730633375093,0.8309,2460.1,2459.3,0.85353626]
[1730633375324,0.8309,2460.1,2459.4,2.17896712]
[1730633375607,0.8309,2460.1,2459.3,0.85353626]
[1730633375812,0.8309,2460.1,2459.4,2.17897519]
[1730633376022,0.8309,2460.1,2459.5,0.15910675]
[1730633376522,0.8309,2460.1,2459.6,0.15910675]
[1730633376736,0.8309,2460.1,2459.4,1.31376768]